Cogmind - Beta 17.1 @@@ ROGUE MODE // 2026.08.30 @ 13:51:14 Player: UnderDoug Result: Destroyed by 1Y-K8P(R) with Subdweller Beam Cannon Performance ------------- Evolutions (0) 0 Regions Visited (2) 400 Robots Destroyed (16) 80 Value Destroyed (376) 376 Prototype IDs (16) 320 Alien Tech Used (0) 0 Bonus (0) 0 TOTAL SCORE: 1176 Bonus ------- None Cogmind --------- Core Integrity 0/250 Matter 300/300 Energy 200/200 System Corruption 0% Temperature Cool (9) Movement Rolling (105) Location -10/Subcaves Parts ------- > --- POWER (1) -------- Subdweller Power Source > --- PROPULSION (2) --- Compact Wheel Subdweller Monowheel > --- UTILITY (2) ------ Medium Storage Unit Gun Armor > --- WEAPON (2) ------- Beam Cannon Makeshift Sword > --- INVENTORY (10) --- Light Ion Engine Subdweller Power Source Subdweller Power Source Aluminum Leg Aluminum Leg Subdweller Monowheel Disposable Heat Sink Shrapnel Trap Piercing Trap Peak State ------------ > --- POWER ------------ Light Ion Engine > --- PROPULSION ------- Light Treads Light Treads > --- UTILITY ---------- Medium Storage Unit Gun Armor > --- WEAPON ----------- Light Assault Rifle Light Assault Rifle Enhanced Flamer Makeshift Sword > --- INVENTORY -------- Light Ion Engine Subdweller Power Source Aluminum Leg Aluminum Leg Compact Wheel Disposable Heat Sink Beam Cannon Shrapnel Trap Piercing Trap [Rating: 23] Favorites ----------- Power Light Ion Engine Engine Light Ion Engine Power Core Light Nuclear Core Propulsion Light Treads Treads Light Treads Leg Aluminum Leg Wheel Compact Wheel Utility Medium Storage Unit Device Disposable Heat Sink Storage Medium Storage Unit Protection Gun Armor Weapon Light Assault Rifle Energy Cannon Beam Cannon Ballistic Gun Light Assault Rifle Ballistic Cannon Light Cannon Special Weapon Enhanced Flamer Slashing Weapon Makeshift Sword Build | -11 -10 -10 ------- Run | Yrd Mat Sub Slots Evolved . | . . . Power . | . . . Propulsion . | . . . Utility . | . . . Weapon . | . . . Parts Attached 23 | 6 7 10 Power 5 | 1 1 3 Engine 4 | 1 . 3 Core 1 | . 1 . Reactor . | . . . Propulsion 8 | 2 4 2 Treads 4 | 2 2 . Leg 2 | . 2 . Wheel 2 | . . 2 Hover . | . . . Flight . | . . . Utility 4 | 1 1 2 Device 1 | . . 1 Storage 2 | 1 1 . Processor . | . . . Hackware . | . . . Protection 1 | . . 1 Artifact . | . . . Weapon 6 | 2 1 3 Energy Gun . | . . . Energy Cannon 1 | . . 1 Ballistic Gun 2 | 2 . . Ballistic Cannon 1 | . 1 . Launcher . | . . . Special Weapon 1 | . . 1 Impact Weapon . | . . . Slashing Weapon 1 | . . 1 Piercing Weapon . | . . . Special Melee Weapon . | . . . Unidentified Prototypes . | . . . Parts Lost 8 | . 2 6 Power 2 | . . 2 Propulsion 3 | . 2 1 Utility . | . . . Weapon 3 | . . 3 Highest Loss Streak 5 | . 1 5 To Critical Strikes . | . . . Average Backups 7 | 3 7 8 Power 1 | . 1 2 Propulsion 3 | 2 3 3 Utility . | . . . Weapon 2 | . 1 2 Tool/Special . | . . . Unused Backups 4 | . 1 3 Power 1 | . . 1 Propulsion 2 | . . 2 Utility . | . . . Weapon 1 | . 1 . Tool/Special . | . . . Average Slot Usage (%) 89 | . 80 94 Engine 8 | . 6 9 Core 5 | . 7 3 Treads 23 | . 21 24 Wheel 1 | . . 2 Device 3 | . . 6 Storage 13 | . 14 13 Protection 2 | . . 3 Ballistic Gun 13 | . 14 13 Ballistic Cannon 6 | . 13 2 Special Weapon 5 | . . 8 Slashing Weapon 2 | . . 3 Peak Build Rating 23 | 6 9 23 Average Rating 10 | 4 6 13 On Entrance 4 | . 6 8 Avg Prop Armor Cover (%) . | . . . Naked Turns . | . . . Heaviest Build 24 | 10 19 24 Greatest Support 40 | 40 40 40 Greatest Overweight (x) 4 | . 4 1 Average Overweight (x) . | . . . Largest Inventory Capacity 10 | 8 10 10 Average Capacity 9 | 6 8 10 Most Carried 10 | 6 8 10 Average Carried 8 | 4 7 9 Final Capacity 10 | 8 10 10 Final Carried 9 | 6 8 9 Class Distribution -------------------- 92% | Mutant 7% | Gunner Dominant Class ---------------- Mutant | -10/Materials Mutant | -10/Subcaves Resources | -11 -10 -10 ----------- Run | Yrd Mat Sub Matter Collected 667 | 250 197 220 Remotely . | . . . Salvage Created 313 | . 182 131 Parts 20 | . 11 9 Haulers Intercepted . | . . . Recyclers Shooed . | . . . Parts Field Recycled . | . . . Retrieved Matter . | . . . Parts Self-Destructed 4 | . . 4 Prevented . | . . . Parts Restored . | . . . Kills | -11 -10 -10 ------- Run | Yrd Mat Sub Combat Hostiles Destroyed 12 | . 8 4 Guns 5 | . 5 . Cannons 7 | . 3 4 Classes Destroyed 6 | . 5 1 Tunneler 1 | . 1 . Operator 1 | . 1 . Watcher 2 | . 2 . Swarmer 6 | . 6 . Grunt 2 | . 2 . Subdweller 4 | . . 4 Best Kill Streak 4 | . 4 2 Combat Bots Only 3 | . 3 2 Max Kills in Single Turn 2 | . 2 1 Gunslinging . | . . . Exploded . | . . . Melee . | . . . Uniques/NPCs Destroyed . | . . . Combat | -11 -10 -10 -------- Run | Yrd Mat Sub Hostile Shots Fired 100 | . 52 48 Missed 24 | . 14 10 Hits 76 | . 38 38 Projectile 76 | . 38 38 Critical Strikes 1 | . 1 . Damage Taken 1365 | . 503 862 Core 273 | . 35 238 Absorbed by Shields . | . . . Core Remaining (%) 100 | 100 . . Volleys Fired 75 | . 37 38 Largest 3 | . 2 3 Hottest 120 | . 50 120 Shots Fired 129 | . 74 55 Gun 71 | . 37 34 Cannon 48 | . 37 11 Launcher . | . . . Special 10 | . . 10 Kinetic 113 | . 74 39 Thermal 16 | . . 16 Explosive . | . . . Electromagnetic . | . . . Robot Hit Streak 31 | . 5 31 Robot Miss Streak 6 | . 6 2 Penetration Max . | . . . Secondary Targets . | . . . Shots Hit Robots 78 | . 35 43 Core Hits 23 | . 13 10 Critical Kills . | . . . Critical Parts Destroyed . | . . . Critical Strikes 2 | . . 2 Burn 1 | . . 1 Blast 1 | . . 1 Melee Attacks 15 | . . 15 Impact . | . . . Slashing 15 | . . 15 Piercing . | . . . Sneak Attacks . | . . . Combat Hostiles . | . . . Follow-up Attacks . | . . . Damage Inflicted 1309 | . 769 540 Guns 379 | . 189 190 Cannons 475 | . 318 157 Explosions 262 | . 262 . Melee 104 | . . 104 Ramming . | . . . Kinetic 748 | . 507 241 Thermal 457 | . 262 195 Explosive . | . . . Electromagnetic . | . . . Impact . | . . . Slashing 104 | . . 104 Piercing . | . . . Highest Corruption . | . . . Average Corruption . | . . . Corruption Purged . | . . . Corruption Blocked . | . . . Overload Shots . | . . . Overflow Damage 168 | . 168 . Projectiles 6 | . 6 . Explosions 162 | . 162 . Melee . | . . . Knockbacks 7 | . 7 . Impact . | . . . Kinetic 6 | . 6 . Secondary 1 | . 1 . Self-Inflicted Damage 97 | . 97 . Shots 1 | . 1 . Rammed . | . . . Targets Rammed . | . . . Kicked . | . . . Crushed . | . . . Highest Temperature 47 | . 47 12 Average Temperature 14 | . 15 6 Received Heat Transfer 363 | . 141 222 Siege Activations . | . . . Martial Activations . | . . . Shielding Activations . | . . . Robots Disrupted . | . . . Combat Hostiles . | . . . Robots Corrupted . | . . . Combat Hostiles . | . . . Parts Fried . | . . . Impact Corruptions . | . . . Robots Melted . | . . . Combat Hostiles . | . . . Parts Melted 3 | . . 3 Heat Transferred 1172 | . 150 1022 Parts Sabotaged . | . . . Parts Stolen . | . . . Parts Stripped . | . . . Power Chain Reactions . | . . . Alert | -11 -10 -10 ------- Run | Yrd Mat Sub Maximum Alert Level . | . . . Low Security (%) 100 | 100 100 . Level 1 . | . . . Level 2 . | . . . Level 3 . | . . . Level 4 . | . . . Level 5 . | . . . High Security . | . . . Max Security . | . . . Peak Influence 125 | . 125 . Initial . | . . . Average 37 | . 42 . Influence Increases 297 | . 297 . Destroy 0b10 Robot/C 160 | . 160 . Destroy 0b10 Robot/NC 20 | . 20 . Destroy Leader 34 | . 34 . Successful Hack 12 | . 12 . Disable Machine 30 | . 30 . Destroy Structure 41 | . 41 . Influence Decreases 297 | . 297 . Time Decay 172 | . 172 . Lost Part 20 | . 20 . Purge Threat 105 | . 105 . Squads Dispatched . | . . . Investigation . | . . . Extermination . | . . . Reinforcement . | . . . Assault . | . . . Garrison . | . . . Intercept . | . . . Searches Triggered . | . . . Construction Impeded . | . . . Haulers Reinforced . | . . . Active Scanning Responses . | . . . Cargo Convoy Interrupts . | . . . Stealth | -11 -10 -10 --------- Run | Yrd Mat Sub Distress Signals 1 | . 1 . Communications Jammed . | . . . Distress Signals . | . . . Times Spotted 21 | . 15 6 Peak Tracking Total 4 | . 4 2 Tactical Retreats . | . . . Traps | -11 -10 -10 ------- Run | Yrd Mat Sub Traps Triggered 1 | . . 1 Indirectly . | . . . Trap Hack Attempts . | . . . Triggered . | . . . Disarmed . | . . . Reprogrammed . | . . . Reused . | . . . Traps Extracted . | . . . Installed . | . . . Triggered . | . . . Most Traps Carried 2 | . . 2 Machines | -11 -10 -10 ---------- Run | Yrd Mat Sub Machines Disabled 3 | . 2 1 Max in Single Turn 2 | . 2 1 Machines Repaired . | . . . Machines Dismantled . | . . . Machines Sabotaged . | . . . Overloaded Fab Kills . | . . . Hacking | -11 -10 -10 --------- Run | Yrd Mat Sub Machines Accessed 6 | . 4 2 Terminals 3 | . 3 . Fabricators . | . . . Repair Stations . | . . . Recycling Units 1 | . 1 . Scanalyzers . | . . . Garrison Access . | . . . Total Hacks 20 | . 7 13 Successful 17 | . 4 13 Failed 3 | . 3 . Catastrophic 1 | . 1 . Database Lockouts . | . . . Manual 1 | . . 1 Terminals 6 | . 6 . Fabricators . | . . . Repair Stations . | . . . Recycling Units 1 | . 1 . Scanalyzers . | . . . Garrison Access . | . . . Terminal Hacks 16 | . 3 13 Record 12 | . . 12 Prototype ID Bank 1 | . 1 . Branch Access Points 1 | . 1 . Unreport Threat 1 | . 1 . Proto ID Catalog 1 | . . 1 Fabricator Hacks . | . . . Repair Station Hacks . | . . . Recycling Unit Hacks 1 | . 1 . Report Inventory 1 | . 1 . Scanalyzer . | . . . Garrison Access Hacks . | . . . Unauthorized Hacks . | . . . Terminals . | . . . Fabricators . | . . . Repair Stations . | . . . Recycling Units . | . . . Scanalyzers . | . . . Garrison Access . | . . . Data Cores Recovered . | . . . Used . | . . . Hacking Detections 2 | . 2 . Full Trace Events 1 | . 1 . Feedback Events . | . . . Feedback Blocked . | . . . Robot Schematics Acquired . | . . . Robots Built . | . . . Authchips . | . . . Time . | . . . Total Robot Build Rating . | . . . Part Schematics Acquired . | . . . Parts Built . | . . . Authchips . | . . . Time . | . . . Total Part Build Rating . | . . . Part Studies Acquired . | . . . Parts Repaired . | . . . Time . | . . . Parts Recycled . | . . . Recycled Matter . | . . . Retrieved Matter . | . . . Retrieved Components . | . . . Parts Scanalyzed . | . . . Part Schematics Acquired . | . . . Parts Damaged . | . . . Bothacking | -11 -10 -10 ------------ Run | Yrd Mat Sub Used RIF Installer . | . . . Robots Hacked . | . . . Non-combat . | . . . Combat . | . . . Robot Hacks Applied . | . . . Relay Couplers Released . | . . . Fabnet Peak Effective % . | . . . Robots Rewired . | . . . Allies Hacked . | . . . Hacks Repelled . | . . . Allies | -11 -10 -10 -------- Run | Yrd Mat Sub Total Allies . | . . . Largest Group . | . . . Highest-Rated Group . | . . . Highest-Rated Ally . | . . . Total Orders . | . . . Ally Attacks . | . . . Total Damage . | . . . Kills . | . . . Allies Corrupted . | . . . Allies Melted . | . . . Intel | -11 -10 -10 ------- Run | Yrd Mat Sub Active Infowar (turns) . | . . . Robot Analysis Total . | . . . Derelict Logs Recovered 1 | . . 1 Drone Launches . | . . . Drone Recoveries . | . . . Exploration | -11 -10 -10 ------------- Run | Yrd Mat Sub Turns Passed 1604 | 75 578 951 Spaces Moved 824 | 46 274 504 Core 27 | 14 13 . Treads 721 | 32 239 450 Legs 22 | . 22 . Wheels 54 | . . 54 Hover . | . . . Flight . | . . . Fastest Speed 50 | 50 120 105 Average Speed 155 | 126 161 155 Slowest Speed 250 | 160 250 240 Overloaded Moves . | . . . Propulsion Burnouts . | . . . Robots Hopped . | . . . Potential Cave-ins . | . . . Cave-ins Triggered . | . . . Exploration Rate (%) 23 | 4 47 20 Regions Visited 2 Branch Regions 1 Pre-discovered Areas . | . . . Known Exits Taken . | . . . Unknown Exits Taken 2 | 1 1 . Scrap Searched 8 | . . 8 Spaces Dug . | . . . Terrain Destroyed 44 | . 44 . Melee . | . . . Projectile 1 | . 1 . AOE 43 | . 43 . Terrain Rammed . | . . . Walls Destroyed . | . . . Machines Disabled . | . . . Actions | -11 -10 -10 --------- Run | Yrd Mat Sub Total 1011 | 63 343 605 Wait 35 | . 18 17 Move 822 | 45 273 504 Hop . | . . . Pick Up 29 | 12 5 12 Fast Attach 3 | . 2 1 Attach 17 | 6 2 9 Detach 1 | . . 1 Swap 6 | . 3 3 Drop 8 | . 3 5 Fire 75 | . 37 38 Melee 15 | . . 15 Ram . | . . . Kick . | . . . Crush . | . . . Escape Stasis . | . . . Rewire . | . . . Trap . | . . . Miscellaneous . | . . . Route ------- -11/Scrapyard -10/Materials (discovered 3 exits: [*Mat] / Min / *Sub) -10/Subcaves History --------- Turn | Location | Event 49 | -11/Scrapyard | Discovered new exit (range 15) 76 | -11/Scrapyard | Entered Materials 317 | -10/Materials | Build established: Mutant 506 | -10/Materials | Identified exit to Mines 617 | -10/Materials | Discovered new exit (range 9) 644 | -10/Materials | Discovered new exit (range 5) 654 | -10/Materials | Entered Subcaves 677 | -10/Subcaves | Learned Materials garrison access intel 712 | -10/Subcaves | Visited Clippyterm 717 | -10/Subcaves | Learned Factory emergency access door positions 717 | -10/Subcaves | Learned Factory garrison access intel 1247 | -10/Subcaves | Visited 4L-MR0's lab 1349 | -10/Subcaves | Found Gun Armor 1358 | -10/Subcaves | Attached Gun Armor, gained temporary slots: Weapon x2 1458 | -10/Subcaves | Ambushed by Subdwellers from Twisted Machinery 1458 | -10/Subcaves | Core integrity fell below 50% 1519 | -10/Subcaves | Core integrity fell below 20% 1532 | -10/Subcaves | Lost 5 parts (1p1n3w) 1605 | -10/Subcaves | Destroyed by 1Y-K8P(R) with Subdweller Beam Cannon Last Messages --------------- Enh. Flamer destroyed. Temporary Weapon slot lost. Lgt. Ion Engine destroyed. Lgt. Assault Rifle destroyed. Lgt. Treads destroyed. 85-1GW(u) tweaks Twisted Machinery. Destroyed Scrap Shield. Sub. Laser melted. 9G-056(R) destroyed. Sub. Optics melted. IK-E5B(R) destroyed. Acquired 15 matter. Acquired Sub. Power Source. Dropped Lgt. Treads. Acquired 10 matter. Acquired Sub. Monowheel. Acquired 20 matter. Acquired Sub. Power Source. Acquired Sub. Monowheel. Subatomizers dissect the Sub. Optics. Map ----- +----------------------------------------------------+ | ?????????????????????????????????????????????????? | | ?????????????????????????????????????????????????? | | ?????????????????????????????????????????????????? | | ?????????????????????????????????????????????????? | | ?????????????????????????????????????????????????? | | ?????????????????????????????????????????????????? | | ?????????????????????????????????????????????????? | | ?????????????????????????????????????????????????? | | ?????????????????????????????????????????????????? | | ??????????????????????? ????????????????????????? | | ?????????????????????? ????????????????????????? | | ?????????????????????? ????????????????????????? | | ?????????????########? ????????????????????????? | | ?????????????# ## ????????????????????????? | | ?????????????# ## #####???????????????????? | | ?????????????# ## #?????? ????????????? | | ?????????????# ### !! ?????? #????????????? | | ?????????????# ###*% ?????? #?????????????? | | ?????????????### #?!& #????? ??????????????? | | ???????????????## #? #???? ???????????????? | | ??????"???#????## #?# ##?? #????????????????? | | ???"""""?# ##### #?# ## #????????????????? | | ????"""""""## ### #????????????????? | | ????? ?#""" " #????????????????? | | ?????# #?#"""" " #?????????????????? | | ????##"### "" ## @R #?????????????????? | | ?####" ## " ### ## #?????????????????? | | ##""" ###" #####? #???????????????? | | #"""" #?#" #?????? #?????????????? | | """"" ### "" ##??????? ???????????? | | "" ##????????? ??????????? | | ## = " ###??????????"" ??????????? | | ?## ##### "##????????????? ???????????? | | ###%##??# ###??????????????? ##???????????? | | ! [#??#######?????????????????? ##????????????? | | #?????????????????????????????#?????????????? | | "#??????????????????????????????????????????? | | ####??????????????????????????????????????????? | | ###?????????????????????????????????????????????? | | ##???????????????????????????????????????????????? | | ?????????????????????????????????????????????????? | | ?????????????????????????????????????????????????? | | ?????????????????????????????????????????????????? | | ?????????????????????????????????????????????????? | | ?????????????????????????????????????????????????? | | ?????????????????????????????????????????????????? | | ?????????????????????????????????????????????????? | | ?????????????????????????????????????????????????? | | ?????????????????????????????????????????????????? | | ?????????????????????????????????????????????????? | +----------------------------------------------------+ Best States ------------- Heat Dissipation 25 Coolant Potential 50 Energy Generation 15 Energy Capacity 200 Matter Stores 300 Matter Capacity 300 Sight Range 16 Terrain Scan Density 10 Armor Coverage 60 Evasion (%) 55 Recoil Reduction 2 Item Schematics ----------------- None Robot Schematics ------------------ None Fabricated ------------ Nothing Repaired ---------- Nothing Studied --------- None Alien Tech Used ----------------- None Achievements -------------- Everything Is Under Control Mistaken Identity Challenges ------------ None Game ------ Seed ScimitarSpacefoldMindspike Manual? 0 Play Time 00:18:37 Cumulative 4.2 hours Start 2026.08.30 @ 13:28:36 End 2026.08.30 @ 13:51:14 Sessions 1 Manual Loads 0 Difficulty Rogue Special Mode None Game No. 8 Rogue 8 Adventurer 0 Explorer 0 Win Type - Total 0 Types 0/0/0/0/0/0/0/0/0/0 Lore% 12 Gallery% 7 Achievement% 9 Wizard Run 0 Options --------- Layout 1 ASCII 0 Keyboard 0 Movement Numpad Keybinds 0 Fullscreen 2 Font 24/X11 Map View 50x35 Zoom Use 0% Tactical HUD 0 Map Filters NONE Filters NONE Steam 1 RUN: 46bcebd2-d22d-4ef7-b489-0d840439302b